bitfinex/quotes_ETHUSD_20260106
["timestamp","ask_amount","ask_price","bid_price","bid_amount"]
[1767719616745,4.00094015,3245.8,3244.6,0.93380224]
[1767719617577,4.00094015,3245.8,3244.7,7.09570028]
[1767719617735,4.00094015,3245.8,3244.7,4.01375126]
[1767719618766,4.00094015,3245.8,3244.8,0.70977705]
[1767719618767,7.07907719,3245.8,3244.8,0.70977705]
[1767719619152,7.07907719,3245.8,3244.8,1.51577705]
[1767719619553,3.99816622,3245.8,3244.8,0.70977705]
[1767719619780,3.99816622,3245.8,3244.8,1.51577705]
[1767719620082,7.07907719,3245.8,3244.8,4.59759059]
[1767719620284,7.07907719,3245.8,3244.8,1.51577705]
[1767719620588,7.86738491,3245.8,3244.8,3.88778861]
[1767719620794,0.92002918,3247.1,3245.8,0.93180224]
[1767719621087,3.08041825,3247.4,3246.2,0.93180224]
[1767719621680,0.001,3247.4,3246.3,6.16086004]
[1767719621875,0.001,3247.4,3246.4,0.70926623]
[1767719622185,0.001,3247.4,3246.5,1.73780224]
[1767719622769,0.001,3247.4,3246.6,0.93180224]
[1767719623170,0.001,3247.4,3246.6,0.94108844]
[1767719624289,0.001,3247.4,3246.7,4.01185275]
[1767719624488,0.001,3247.4,3246.8,0.71012406]
[1767719624789,0.001,3247.4,3246.4,0.70926623]
[1767719624958,0.001,3247.4,3246.3,0.93180224]
[1767719625159,0.001,3247.4,3246.4,0.805]
[1767719625787,0.001,3247.4,3246.4,3.88531729]
[1767719626387,0.001,3247.4,3246.4,3.08032781]
[1767719626596,0.001,3247.4,3246.5,0.805]
[1767719626776,0.001,3247.4,3246.6,0.38853278]
[1767719628192,0.001,3247.4,3246.6,1.19353278]
[1767719628484,0.001,3247.1,3246.6,1.19353278]
[1767719631197,0.001,3247.1,3246.6,4.27365236]
[1767719631403,0.001,3247.1,3246.7,0.93180224]
[1767719631562,0.001,3247.1,3246.8,0.82856]
[1767719632005,0.001,3247.1,3246.6,1.19353278]
[1767719632299,0.001,3247.1,3246.6,0.805]
[1767719632696,0.001,3247.1,3246.6,3.88313608]
[1767719635190,0.001,3247.1,3246.6,7.8950837]
[1767719635493,0.001,3247.4,3246.7,0.93180224]
[1767719635993,0.001,3247.4,3246.7,0.94108844]
[1767719636295,0.001,3247.4,3246.8,1.72223923]
[1767719636994,0.001,3247.4,3246.8,4.80211848]
[1767719638671,0.001,3247.4,3246.9,0.805]
[1767719639084,0.001,3247.4,3246.5,0.94091468]
[1767719639279,0.001,3247.4,3246.6,3.08005377]
[1767719639481,0.001,3247.4,3246.7,0.805]
[1767719640203,0.001,3247.4,3246.7,3.88504219]
[1767719640573,0.001,3247.1,3246.6,0.71012113]
[1767719640792,0.001,3247.1,3246.7,0.805]
[1767719640991,0.001,3247.1,3246.3,6.16078948]
[1767719641171,0.001,3247.1,3246.4,0.805]
[1767719643012,0.001,3247.1,3246.5,3.08024025]
[1767719643213,0.001,3247.1,3246.5,7.12050793]
[1767719643375,0.001,3247.1,3246.6,0.79255079]
[1767719643707,0.001,3247.1,3246.1,0.96002743]
[1767719643708,0.91329339,3247.1,3246.1,0.96002743]
[1767719643928,0.91329339,3247.1,3245.7,0.96002743]
[1767719644081,0.91329339,3247.1,3245.8,0.805]
[1767719644785,0.91329339,3247.1,3245.4,4.04126609]
[1767719645004,0.91329339,3247.1,3245.7,0.805]
[1767719645207,0.91229339,3246.8,3245.7,0.805]
[1767719647114,0.91229339,3246.6,3245.7,3.88598936]
[1767719647510,0.91229339,3246.6,3245.7,0.805]
[1767719649120,0.91229339,3246.6,3245.7,3.88597062]
[1767719649433,0.91229339,3246.5,3245.7,3.88597062]
[1767719649635,6.1597614,3246.9,3245.8,0.96002743]
[1767719651297,6.1597614,3246.9,3245.9,0.96002743]
[1767719652407,3.0798807,3246.9,3245.9,0.96002743]
[1767719653712,6.1597614,3246.9,3245.9,4.04077693]
[1767719654031,0.91229339,3246.8,3246.0,0.002]
[1767719655834,6.79300047,3246.9,3246.0,0.96202743]
[1767719656036,3.71311977,3246.9,3246.0,0.96202743]
[1767719656203,6.79300047,3246.9,3246.0,0.96202743]
[1767719656931,6.79300047,3246.9,3246.0,1.76702743]
[1767719657121,0.69646298,3246.8,3246.0,1.76702743]
[1767719657444,0.69646298,3246.8,3246.0,1.73337538]
[1767719657743,0.69646298,3246.8,3246.0,0.92837538]
[1767719657929,6.16010102,3246.7,3246.0,0.92837538]
[1767719658641,3.08005051,3246.7,3246.0,0.92837538]
[1767719658837,0.37628286,3246.6,3246.0,1.73337538]
[1767719659208,0.37628286,3246.6,3246.0,0.92837538]
[1767719659414,0.37628286,3246.6,3246.0,1.73337538]
[1767719660040,0.37628286,3246.6,3246.0,4.81408842]
[1767719660215,3.08005128,3246.7,3246.0,1.73337538]
[1767719662045,3.99234467,3246.7,3246.0,0.805]
[1767719663057,0.69646298,3246.8,3246.0,1.76502743]
[1767719663216,3.99216687,3246.9,3246.0,3.88570209]
[1767719663419,0.91229339,3246.8,3246.0,0.805]
[1767719663619,0.91229339,3246.8,3245.6,0.002]
[1767719663847,0.91229339,3246.8,3245.7,0.805]
[1767719664225,0.91229339,3246.6,3245.7,0.805]
[1767719664423,0.91229339,3246.5,3245.6,3.08304018]
[1767719664625,0.91229339,3246.5,3245.7,0.805]
[1767719665149,0.91229339,3246.5,3245.6,0.002]
[1767719666444,0.91229339,3246.3,3245.6,0.002]
[1767719667351,0.91229339,3246.3,3245.9,0.002]
[1767719667552,0.70729637,3246.2,3245.9,0.002]
[1767719668244,3.08126434,3246.5,3245.9,0.002]
[1767719668444,3.99355773,3246.5,3245.9,0.002]
[1767719669642,7.07382207,3246.5,3245.9,0.002]
[1767719670762,3.99355773,3246.5,3245.9,0.002]
[1767719671121,7.07382207,3246.5,3245.9,0.002]
[1767719671443,1.74195769,3246.4,3245.9,0.002]
[1767719672151,0.96385154,3246.3,3245.6,0.002]
[1767719672328,0.96385154,3246.3,3245.5,0.002]
[1767719672961,0.96385154,3246.1,3245.5,0.002]
[1767719673176,0.96385154,3245.9,3245.5,0.002]
[1767719673452,0.96385154,3245.9,3244.7,0.002]
[1767719673453,0.96385154,3245.9,3244.7,1.73811523]
[1767719674151,0.96385154,3245.9,3244.7,0.002]
[1767719674920,0.96385154,3245.7,3244.7,0.002]
[1767719675118,0.96385154,3245.5,3244.7,0.002]
[1767719676563,0.96385154,3245.5,3244.4,0.807]
[1767719676923,4.04513581,3245.4,3244.4,4.82033784]
[1767719677320,7.12642008,3245.4,3244.4,1.73811523]
[1767719678142,4.04513581,3245.4,3244.5,0.93111523]
[1767719678322,0.71263958,3245.3,3244.5,0.93111523]
[1767719678525,7.12642008,3245.4,3244.5,0.93111523]
[1767719679338,0.96385154,3245.3,3244.4,0.807]
[1767719680959,0.96385154,3245.3,3244.4,0.002]
[1767719681159,0.96385154,3245.1,3244.4,0.002]
[1767719681354,0.96385154,3244.8,3244.4,0.002]
[1767719682058,0.96385154,3244.8,3244.3,0.002]
[1767719683430,3.08194902,3244.7,3244.3,0.002]
[1767719684036,4.04574216,3244.8,3244.3,0.002]
[1767719684462,7.12763278,3244.8,3244.3,0.002]
[1767719684658,0.71276328,3244.7,3244.3,0.002]
[1767719685466,3.08204401,3244.6,3244.3,0.002]
[1767719686373,0.71276328,3244.7,3244.3,0.002]
[1767719686576,3.08191377,3244.8,3244.3,0.002]
[1767719687680,4.0456106,3244.9,3244.3,0.002]
[1767719687846,0.96385154,3244.8,3244.3,0.002]
[1767719689590,0.96385154,3244.8,3243.8,0.002]
[1767719689883,0.96385154,3244.6,3243.8,0.002]
[1767719690098,0.96385154,3244.4,3243.8,0.002]
[1767719692280,3.082329,3244.3,3243.8,0.002]
[1767719693057,3.082329,3244.3,3244.1,0.002]
[1767719693258,6.164658,3244.3,3244.1,0.002]
[1767719693443,6.164658,3244.3,3243.1,0.002]
[1767719693444,0.96385154,3244.1,3242.8,4.01479503]
[1767719693648,0.96385154,3244.1,3242.9,3.08364585]
[1767719693885,0.96385154,3244.1,3243.0,0.93311523]
[1767719694124,4.04646559,3244.0,3243.0,4.01666143]
[1767719694322,4.04646559,3244.0,3243.1,0.93111523]
[1767719694532,0.71290729,3243.9,3243.1,0.93111523]
[1767719695521,0.96385154,3243.8,3243.0,0.002]
[1767719696221,3.08289915,3243.7,3243.0,0.002]
[1767719696390,6.1657983,3243.7,3243.0,0.002]
[1767719696590,0.71296498,3243.6,3243.0,0.002]
[1767719696992,1.62334598,3243.6,3243.0,0.002]
[1767719697813,0.910381,3243.5,3243.0,0.002]
[1767719698391,3.99348322,3243.5,3243.0,0.002]
[1767719698803,0.71296498,3243.6,3243.0,0.002]
[1767719699129,0.37959219,3243.5,3243.0,0.002]
[1767719699634,3.08254636,3244.1,3243.0,0.002]
[1767719699635,3.08251903,3244.1,3243.2,0.90521276]
[1767719699830,0.910381,3244.4,3243.2,0.68753669]
[1767719700133,0.804,3244.5,3243.2,0.68753669]
[1767719700134,7.075039,3244.3,3243.2,0.68753669]
[1767719701021,0.804,3244.4,3243.3,0.90521276]
[1767719701209,0.910381,3244.6,3243.3,0.90521276]
[1767719701431,0.804,3244.5,3243.3,0.90521276]
[1767719701633,0.9754381,3244.5,3243.5,0.92941574]
[1767719702039,3.08162215,3245.1,3243.4,0.70719594]
[1767719702040,0.001,3245.4,3244.5,0.94286215]
[1767719702212,0.001,3245.4,3244.7,0.87312187]
[1767719702416,0.97334178,3246.4,3245.2,0.94286215]
[1767719702714,3.08043002,3246.3,3245.2,0.94286215]
[1767719702910,0.35537718,3246.2,3245.2,0.94286215]
[1767719703116,0.35537718,3246.2,3245.3,0.94286215]
[1767719704317,0.001,3246.5,3245.3,0.95214835]
[1767719704547,0.001,3246.5,3245.4,6.16256854]
[1767719704746,0.001,3246.5,3245.5,0.94286215]
[1767719705255,0.001,3247.1,3246.5,0.94186112]
[1767719705621,0.30904957,3247.1,3246.5,0.94186112]
[1767719706155,0.30904957,3247.1,3245.6,0.94286215]
[1767719706319,1.28239135,3247.1,3246.0,0.94286215]
[1767719706623,3.07976593,3247.0,3246.0,0.94286215]
[1767719706819,6.15953186,3247.0,3246.0,0.94286215]
[1767719707137,0.74419232,3246.9,3246.0,0.94286215]
[1767719707525,0.74419232,3246.9,3245.7,0.94286215]
[1767719707526,1.7175341,3246.9,3245.7,0.94286215]
[1767719707730,0.97334178,3246.8,3245.7,0.94286215]
[1767719708669,6.15991128,3246.8,3245.7,0.94286215]
[1767719709595,6.15991128,3246.8,3244.8,3.09107936]
[1767719709596,0.97334178,3246.7,3245.0,0.94286215]
[1767719709753,0.97334178,3246.5,3245.1,0.94286215]
[1767719710894,7.13401206,3246.4,3245.1,0.94286215]
[1767719711198,0.97334178,3246.3,3244.8,0.94286215]
[1767719711851,0.97334178,3246.3,3244.9,0.94286215]
[1767719712065,1.02143472,3246.2,3245.0,0.94286215]
[1767719712959,6.16123964,3246.1,3245.0,0.94286215]
[1767719713985,6.96523964,3246.1,3245.0,0.94286215]
[1767719714184,7.93858142,3246.1,3245.0,0.94286215]
[1767719714394,3.88461982,3246.1,3245.1,0.94286215]
[1767719714554,0.804,3246.5,3245.2,0.94286215]
[1767719714989,6.16067028,3246.4,3245.2,0.94286215]
[1767719715373,0.97334178,3246.3,3245.2,0.94286215]
[1767719715960,6.16067028,3246.4,3245.2,0.94286215]
[1767719716173,0.69646703,3246.3,3245.2,0.94286215]
[1767719716886,6.16104984,3246.2,3245.2,0.94286215]
[1767719717083,7.13439162,3246.2,3245.2,0.94286215]
[1767719717283,6.16104984,3246.2,3245.2,0.94286215]
[1767719718783,6.16104984,3246.2,3245.5,0.002]
[1767719718984,3.08071472,3246.0,3245.5,0.002]
[1767719720718,6.16142944,3246.0,3245.5,0.002]
[1767719721716,0.97334178,3245.9,3245.1,0.002]
[1767719722215,0.97334178,3245.9,3244.6,0.94286215]
[1767719723421,0.97334178,3245.7,3244.6,0.94286215]
[1767719723610,1.99494732,3245.6,3244.6,0.94286215]
[1767719723785,0.97334178,3245.4,3244.3,0.94286215]
[1767719724534,0.97334178,3245.4,3244.3,4.0251717]
[1767719725184,6.16275844,3245.3,3244.3,0.94286215]
[1767719725388,6.34049262,3245.3,3244.3,0.94286215]
[1767719726521,3.2591134,3245.3,3244.4,0.94286215]
[1767719727228,6.34049262,3245.3,3244.4,0.94286215]
[1767719727715,6.34049262,3245.3,3243.9,0.94486215]
[1767719727716,0.97334178,3245.2,3243.9,0.94486215]
[1767719727921,0.97334178,3245.1,3243.9,0.94486215]
[1767719728098,0.804,3245.0,3243.9,0.94486215]
[1767719728414,0.804,3245.0,3244.0,4.05129877]
[1767719728818,0.97334178,3245.1,3244.0,4.05129877]
[1767719729021,0.1607391,3245.0,3244.0,4.05129877]
[1767719729727,0.97334178,3244.8,3243.9,0.002]
[1767719731632,0.98935369,3244.6,3244.2,0.002]
[1767719731812,6.16389804,3244.7,3243.9,0.002]
[1767719731813,0.98935369,3244.4,3243.9,0.002]
[1767719732011,0.98935369,3244.4,3243.6,0.002]
[1767719732245,0.17933537,3244.3,3243.6,0.002]
[1767719732939,1.16868906,3244.3,3243.6,0.002]
[1767719733413,1.16868906,3244.3,3243.3,0.002]
[1767719733813,0.98935369,3244.1,3243.3,0.002]
[1767719734015,1.79335369,3244.0,3243.3,0.002]
[1767719734214,0.17933537,3243.9,3243.3,0.002]
[1767719735165,0.804,3243.8,3243.3,0.002]
[1767719735732,3.08289915,3243.7,3243.3,0.002]
[1767719736826,0.98935369,3243.6,3243.0,0.002]
[1767719737023,1.70486889,3243.5,3243.0,0.002]
[1767719737543,0.7155152,3243.5,3243.0,0.002]
[1767719737748,4.87618246,3243.8,3243.0,0.002]
[1767719737928,0.98935369,3243.7,3243.0,0.002]
[1767719740175,4.07226889,3243.7,3243.0,0.002]
[1767719740382,0.98935369,3243.6,3243.0,0.002]
[1767719740675,0.98935369,3243.6,3242.6,0.95960938]
[1767719740884,1.7048721,3243.5,3242.6,0.95960938]
[1767719741060,0.98935369,3243.4,3242.5,0.002]
[1767719741254,0.98935369,3243.2,3242.5,0.00099897]
[1767719741496,0.98935369,3243.0,3242.5,0.00099897]
[1767719744381,0.98804318,3243.0,3242.2,0.002]
[1767719744582,0.98804318,3243.0,3242.8,0.002]
[1767719744787,0.98804318,3243.0,3242.2,0.002]
[1767719745253,0.42508532,3242.9,3242.2,0.002]
[1767719745454,0.804,3242.8,3242.2,0.002]
[1767719745864,0.80268941,3242.8,3242.2,0.002]
[1767719747496,0.17933537,3243.1,3242.2,0.95960938]
[1767719747670,0.804,3243.0,3242.2,0.95960938]
[1767719748068,1.79335369,3243.0,3242.2,0.95960938]
[1767719748478,1.79335369,3243.0,3242.2,4.04392826]
[1767719748768,0.804,3243.0,3242.3,0.95760938]
[1767719751494,1.79335369,3243.0,3242.2,0.002]
[1767719751867,0.001,3243.5,3242.3,0.95760938]
[1767719752072,0.805,3243.4,3242.4,0.95760938]
[1767719752887,0.805,3243.4,3242.5,0.95760938]
[1767719753089,0.17953537,3243.3,3242.5,0.95760938]
[1767719754007,1.16888906,3243.3,3242.5,0.95760938]
[1767719754513,1.16888906,3243.3,3242.2,0.002]
[1767719754710,0.98935369,3243.2,3242.2,0.002]
[1767719755012,0.98935369,3243.2,3242.0,0.002]
[1767719755189,0.98935369,3243.0,3242.0,0.002]
[1767719755386,0.98935369,3242.8,3242.0,0.002]
[1767719756790,0.98935369,3242.6,3241.9,0.002]
[1767719757001,0.98935369,3242.6,3241.5,0.00099073]
[1767719757215,0.95030383,3242.4,3241.5,0.00099073]
[1767719757536,0.95030383,3242.2,3241.5,0.00099073]
[1767719757723,0.95030383,3242.2,3241.2,0.002]
[1767719757886,0.95030383,3242.2,3241.1,0.00099897]
[1767719759017,0.95030383,3242.0,3241.1,0.00099897]
[1767719759215,0.95030383,3241.8,3241.1,0.00099897]
[1767719759417,0.805,3241.7,3241.1,0.00099897]
[1767719760027,0.40347244,3241.9,3241.1,0.9231544]
[1767719760320,0.805,3242.1,3241.1,0.9231544]
[1767719761214,1.75530383,3242.1,3241.1,0.9231544]
[1767719761415,1.75530383,3242.1,3241.1,4.00851653]
[1767719762025,0.805,3242.1,3241.2,0.90673253]
[1767719762325,0.805,3242.1,3241.3,0.90673253]
[1767719762924,0.90783422,3242.5,3241.3,0.90673253]
[1767719763129,0.805,3242.4,3241.4,0.90673253]
[1767719764122,1.71283422,3242.4,3241.4,0.90673253]
[1767719764331,0.90783422,3242.3,3241.1,0.9077315]
[1767719764536,0.17128342,3242.2,3241.1,0.9077315]
[1767719764894,0.17128342,3242.2,3241.3,0.90673253]
[1767719765095,0.805,3242.2,3241.3,0.90673253]
[1767719767642,0.805,3242.2,3241.1,0.00099897]
[1767719767643,0.90783422,3242.1,3241.1,0.00099897]
[1767719767950,3.88933002,3242.2,3241.1,0.00099897]
[1767719767951,0.805,3242.2,3241.3,3.99189283]
[1767719768501,0.805,3242.2,3241.3,0.90673253]
[1767719768711,0.97628342,3242.2,3241.3,3.99190896]
[1767719769125,0.90783422,3242.4,3241.4,0.90673253]
[1767719769351,0.805,3242.4,3241.4,0.90673253]
[1767719769651,0.001,3241.9,3241.5,0.90673253]
[1767719770973,0.90783422,3241.7,3241.1,0.00099897]
[1767719772669,0.90783422,3241.7,3240.7,0.002]
[1767719772871,0.17128342,3241.6,3240.7,0.002]
[1767719773225,1.07911764,3241.6,3240.7,0.002]
[1767719773971,0.17128342,3241.6,3240.7,0.90873253]
[1767719774127,0.805,3241.5,3240.7,0.90873253]
[1767719774467,0.001,3241.9,3240.9,0.90673253]
[1767719774670,0.90783422,3242.7,3241.6,0.90673253]
[1767719774878,0.001,3243.0,3241.6,0.90673253]
[1767719775734,0.001,3243.0,3241.8,0.90673253]
[1767719775922,0.001,3243.0,3242.0,0.90673253]
[1767719777445,0.001,3243.0,3242.0,0.9004049]
[1767719777850,0.001,3243.0,3242.1,6.16884118]
[1767719778163,0.001,3243.0,3242.2,0.90673253]
[1767719779367,0.001,3243.5,3242.8,0.90673253]
[1767719780032,0.001,3243.5,3242.9,0.90673253]
[1767719780541,0.001,3243.5,3242.3,0.90673253]
[1767719780740,0.90883422,3243.5,3242.4,3.08413414]
[1767719780940,0.90883422,3243.5,3242.5,3.08403769]
[1767719781561,0.90883422,3243.5,3242.4,0.70751691]
[1767719781752,0.90883422,3243.5,3242.4,3.79165006]
[1767719781938,0.001,3243.2,3242.4,3.79165006]
[1767719782144,0.001,3243.2,3242.5,0.46983826]
[1767719784646,0.001,3243.2,3242.5,3.55387569]
[1767719784854,0.001,3243.2,3242.5,0.46983826]
[1767719785055,0.001,3243.2,3242.3,0.90673253]
[1767719785364,0.001,3243.2,3242.3,3.99089147]
[1767719786166,0.90883422,3243.2,3242.0,0.90673253]
[1767719786464,0.90783422,3243.1,3242.2,3.08431792]
[1767719786661,0.90783422,3243.1,3242.1,3.08442059]
[1767719786834,1.07921764,3243.1,3242.1,3.79198724]
[1767719787676,0.806,3243.2,3242.2,0.90673253]
[1767719789045,0.806,3243.2,3242.3,3.99096286]
[1767719790165,0.90783422,3243.1,3242.2,3.08429003]
[1767719790462,0.90783422,3243.1,3242.1,3.08436022]
[1767719790653,0.90783422,3243.1,3242.0,0.90673253]
[1767719790858,0.90783422,3242.9,3241.8,3.08464656]
[1767719791253,0.90783422,3242.9,3241.7,3.08480118]
[1767719791846,0.90783422,3242.9,3241.7,4.02647949]
[1767719792535,0.90783422,3242.9,3241.7,7.11128067]
[1767719792959,0.90783422,3242.9,3241.7,4.02647949]
[1767719793870,0.90783422,3242.9,3242.0,0.002]
[1767719794067,1.36093627,3242.8,3242.0,0.002]
[1767719794268,0.96179596,3242.7,3242.0,0.002]
[1767719794472,0.96179596,3242.5,3242.0,0.002]
[1767719794973,0.805,3242.6,3242.0,0.002]
[1767719795178,0.39914031,3242.8,3242.0,0.94367831]
[1767719795179,0.805,3242.8,3242.0,0.94367831]
[1767719795475,0.96279596,3243.2,3242.1,0.95261587]
[1767719795476,0.806,3243.2,3242.1,0.95261587]
[1767719795770,0.806,3243.2,3242.1,0.94167831]
[1767719795970,0.806,3243.2,3242.2,3.08432545]
[1767719796146,0.9827796,3243.2,3242.2,3.08432545]
[1767719796341,0.9827796,3243.2,3242.2,7.11032921]
[1767719796547,0.9827796,3243.2,3242.3,0.97252061]
[1767719797144,0.806,3243.2,3242.3,0.97252061]
[1767719797951,0.806,3243.2,3242.4,3.0841352]
[1767719798158,0.806,3243.2,3242.4,4.02581351]
[1767719800671,0.806,3243.2,3242.5,0.94167831]
[1767719803089,0.806,3243.2,3242.5,4.02571649]
[1767719804285,0.806,3243.2,3242.6,0.94167831]
[1767719804976,0.001,3243.2,3242.7,0.94167831]
[1767719808410,0.001,3243.2,3242.7,4.02550506]
[1767719808611,0.001,3243.2,3242.7,0.94167831]
[1767719809308,0.001,3243.2,3242.4,4.02781243]
[1767719809513,0.001,3243.2,3242.6,0.94167831]
[1767719811786,0.001,3243.2,3242.4,3.08613423]
[1767719811991,0.001,3243.2,3242.4,4.02781254]
[1767719812309,0.001,3243.2,3242.5,4.02570575]
[1767719812608,0.001,3243.2,3242.5,0.94167831]
[1767719813182,0.001,3243.2,3242.5,0.93865057]
[1767719814882,0.001,3243.2,3242.4,0.002]
[1767719814883,1.54919193,3243.2,3242.4,0.002]
[1767719815085,0.96179596,3242.7,3242.0,0.002]
[1767719816018,0.96179596,3242.7,3241.6,0.002]
[1767719816019,0.96179596,3242.7,3241.6,3.0868907]
[1767719816513,0.96179596,3242.7,3241.7,3.084794]
[1767719816926,0.92721477,3242.4,3241.6,0.002]
[1767719817233,0.92721477,3242.2,3241.6,0.002]
[1767719817725,0.58283785,3242.3,3241.1,4.04376909]
[1767719817726,0.92721477,3241.9,3241.1,4.04376909]
[1767719818509,0.92721477,3241.9,3241.2,3.08526606]
[1767719818827,0.1606172,3242.1,3241.2,7.12899087]
[1767719819025,1.08783197,3242.1,3241.2,4.04371382]
[1767719819334,1.25489895,3242.1,3241.2,0.95844776]
[1767719819499,1.25489895,3242.1,3241.2,4.0437095]
[1767719819700,1.25489895,3242.1,3241.2,4.0457095]
[1767719820996,1.25489895,3242.1,3241.2,7.13098655]
[1767719821195,1.25489895,3242.1,3241.2,4.0457095]
[1767719821528,0.32768418,3242.1,3241.3,0.90602277]
[1767719821735,0.58283785,3242.3,3241.3,0.90602277]
[1767719822033,0.90604983,3242.2,3241.3,0.90602277]
[1767719822938,0.90604983,3242.1,3241.2,0.002]
[1767719823146,4.90116369,3241.6,3240.9,0.90602277]
[1767719823309,0.49011637,3241.5,3240.8,0.002]
[1767719823913,1.3961662,3241.5,3240.8,0.002]
[1767719825313,0.90604983,3241.4,3240.8,0.002]
[1767719826920,0.90604983,3241.2,3240.4,0.002]
[1767719827241,1.48677118,3241.1,3240.4,0.002]
[1767719827448,0.805,3241.2,3240.6,0.90602277]
[1767719827745,0.805,3241.2,3240.0,0.90602277]
[1767719827746,4.90116369,3240.9,3240.0,0.90602277]
[1767719827921,5.80721352,3240.9,3240.0,0.90602277]
[1767719828116,0.16083666,3241.4,3240.5,0.90602277]
[1767719828314,0.805,3241.2,3240.5,0.90602277]
[1767719829352,1.71104983,3241.2,3240.2,0.90602277]
[1767719829552,0.90604983,3240.9,3239.9,0.90602277]
[1767719829753,0.39915173,3240.8,3239.9,0.90602277]
[1767719830360,0.39915173,3240.8,3240.0,0.90602277]
[1767719830562,0.90604983,3241.0,3240.0,0.90602277]
[1767719831545,3.9915253,3241.0,3240.0,0.90602277]
[1767719831945,0.90604983,3241.0,3240.0,0.90602277]
[1767719832970,0.001,3241.1,3240.1,0.90602277]
[1767719833293,0.16083666,3241.4,3241.0,0.90502174]
[1767719833443,0.805,3241.9,3241.1,0.90602277]
[1767719835539,0.805,3241.9,3241.2,0.90602277]
[1767719835742,0.16083284,3242.0,3241.2,0.90602277]
[1767719836263,0.805,3242.5,3241.2,0.90602277]
[1767719836468,0.16081581,3242.4,3241.2,0.90602277]
[1767719837573,0.16081581,3242.4,3241.4,0.90602277]
[1767719837874,0.16081581,3242.4,3241.5,0.90602277]
[1767719839251,0.90604983,3242.3,3241.4,0.39912046]
[1767719839856,0.90604983,3242.3,3241.5,0.90602277]
[1767719841063,0.805,3242.2,3241.5,0.90602277]
[1767719843862,0.001,3242.0,3241.5,0.90602277]
[1767719847499,0.90704983,3242.0,3240.6,0.90602277]
[1767719847687,1.38668894,3242.0,3241.0,3.99142552]
[1767719847912,1.38668894,3242.0,3241.1,0.90602277]
[1767719848263,1.54751668,3242.0,3241.1,0.90602277]
[1767719848968,1.06787757,3242.0,3241.1,0.90602277]
[1767719849164,0.16182774,3242.0,3241.1,0.90602277]
[1767719849399,0.90704983,3243.2,3241.7,0.90502174]
[1767719849616,1.71204983,3243.2,3241.7,0.90502174]
[1767719849915,4.79542579,3243.2,3241.9,0.90602277]
[1767719850117,4.96663077,3243.2,3242.1,0.90602277]
[1767719850287,0.90604983,3243.1,3242.1,0.90602277]
[1767719850986,0.806,3243.2,3242.1,0.90602277]
[1767719851198,0.001,3243.2,3242.1,0.90602277]
[1767719851499,0.001,3243.2,3242.3,0.9938613]
[1767719851907,0.001,3243.2,3242.4,0.9938613]
[1767719852106,0.001,3243.2,3242.2,0.16135662]
[1767719852306,0.98552829,3243.2,3242.2,0.16135662]
[1767719852474,0.98552829,3243.2,3242.2,1.15521792]
[1767719852678,0.98552829,3243.2,3242.2,4.23953846]
[1767719853108,0.98552829,3243.2,3242.0,0.70754348]
[1767719853279,0.98552829,3243.2,3241.9,0.9938613]
[1767719854297,0.98452829,3243.0,3241.9,0.9938613]
[1767719854475,0.805,3242.9,3241.9,0.9938613]
[1767719854675,1.78952829,3242.9,3241.9,0.9938613]
[1767719854875,0.98452829,3242.8,3241.6,0.9938613]
[1767719855098,0.17895283,3242.7,3241.7,0.9938613]
[1767719855298,0.17895283,3242.7,3241.7,4.07860893]
[1767719855902,1.16348112,3242.7,3241.7,0.9938613]
[1767719856289,0.98452829,3242.6,3241.5,0.9938613]
[1767719857380,0.17895283,3242.7,3241.5,0.9938613]
[1767719857579,0.805,3242.6,3241.7,0.9938613]
[1767719858404,0.805,3242.6,3241.7,4.07863677]
[1767719858710,0.805,3242.6,3241.7,0.9938613]
[1767719858913,0.98452829,3242.5,3241.7,0.9938613]
[1767719859081,0.98452829,3242.5,3241.3,0.9938613]
[1767719859307,0.79574369,3242.4,3241.3,0.9938613]
[1767719859706,0.79574369,3242.4,3241.3,0.99243475]
[1767719860023,1.78027198,3242.4,3241.3,0.99243475]
[1767719860222,0.98452829,3242.3,3241.3,0.99243475]
[1767719860430,3.08432545,3242.2,3241.3,0.99243475]
[1767719860610,0.40688537,3242.1,3241.3,0.99243475]
[1767719860809,0.805,3242.0,3241.3,0.99243475]
[1767719861306,0.805,3242.0,3241.0,0.9938613]
[1767719861509,0.805,3242.0,3239.9,3.08651125]
[1767719861510,0.98452829,3241.9,3240.7,0.9938613]
[1767719861732,0.98452829,3241.7,3240.7,0.9938613]
[1767719862520,3.08489634,3241.6,3240.7,0.9938613]
[1767719863840,0.805,3241.5,3240.7,0.9938613]
[1767719864216,1.78952829,3241.5,3240.7,0.9938613]
[1767719864419,0.98452829,3241.4,3240.1,0.9938613]
[1767719864611,0.98452829,3241.2,3238.7,3.24842767]
[1767719864811,0.98452829,3241.0,3239.5,0.9938613]
[1767719865038,0.98452829,3240.8,3239.5,0.9938613]
[1767719865206,0.17895283,3240.7,3239.7,4.08055694]
[1767719865413,0.17895283,3240.7,3239.7,0.9938613]
[1767719865754,1.16348112,3240.7,3239.5,0.408091]
[1767719865915,1.16348112,3240.7,3239.3,4.08093009]
[1767719866116,1.16348112,3240.7,3239.3,3.08706879]
[1767719866411,1.16348112,3240.7,3239.4,0.9938613]
[1767719866612,4.07037658,3240.6,3239.4,0.9938613]
[1767719867054,7.15622487,3240.6,3239.4,0.9938613]
[1767719867231,0.73351777,3240.5,3239.4,0.9938613]
[1767719867430,0.805,3240.4,3239.4,0.9938613]
[1767719868451,0.98452829,3240.3,3239.4,0.002]
[1767719868644,3.8910609,3240.4,3239.4,0.9958613]
[1767719868841,0.46245787,3240.3,3239.4,0.9958613]
[1767719869424,0.805,3240.4,3239.4,0.9958613]
[1767719869638,0.98452829,3240.3,3239.4,0.002]
[1767719870152,3.89106162,3240.4,3239.4,0.9958613]
[1767719870350,0.805,3240.4,3239.4,0.9958613]
[1767719870649,0.805,3240.4,3239.5,0.9938613]
[1767719870859,0.805,3240.3,3239.5,0.9938613]
[1767719871244,0.805,3240.3,3239.4,0.002]
[1767719871767,0.805,3240.3,3239.4,0.9958613]
[1767719872168,1.78952829,3240.3,3239.4,0.002]
[1767719872335,0.98452829,3240.1,3239.4,0.002]